Workbook

Sheet APOD
A1: $6,850,000 Three office warehouse metal industrial buildings for Sale 9330 14th Ave South & 1421 S 93rd & 1425 S 93rd Seattle,Washington 98109
A2: Income & Expenses
A4: Summary Rent Roll | G4: Actual July 2023 | J4: Proforma * Industrial Automation Inc montly rent of $19,500 a month starts October 1, 2023 with annual rent increases of three percent for the three year lease term . The monthly rent for Frog Hollow is suggested rent starting May 1, 2024 | M4: Stabilized
B5: BLDG ADDRESS | C5: Lease | D5: Lease | E5: BUILDING SF | F5: % of | G5: Monthly | H5: Monthly | I5: Annual | J5: Monthly | K5: Monthly | L5: Annual | M5: Monthly | N5: Annual | O5: Annual
A6: Tenant Name | B6: # | C6: Start | D6: Expiration | E6: SF | F6: Total | G6: Rent | H6: Rent/SF | I6: Total | J6: Rent | K6: Rent/SF | L6: Total | M6: Rent | N6: Rent/SF | O6: Total
A7: Industrial Automation Inc. (2 buildings ) 9330 14th Ave S 10,969 SF occupied by Industrial Automation 1421 S 93rd 8,049 SF occupied by Industrial Automation *The Industrial Automation Inc lease has three percent annual rental increases. | B7: 9330 14th Ave S & 1421 S 93rd St | D7: 2023-11-30 | E7: 19018 | F7: =E7/$E$11 -> 0.6756190273 | G7: 10000 | H7: =G7/E7 -> 0.5258176464 | I7: =G7*12 -> 120000 | J7: 19500 | K7: =J7/E7 -> 1.025344411 | L7: =J7*12 -> 234000
A9: Frog Hollow Corporation 1425 S 93rd 9131 SF occupied by Frog Hollow Corporation | B9: 1425 S 93rd St | D9: 2021-07-31 | E9: 9131 | F9: =E9/$E$11 -> 0.3243809727 | G9: 6200 | H9: =G9/E9 -> 0.6790055854 | I9: =G9*12 -> 74400 | J9: 10500 | K9: =J9/E9 -> 1.149928814 | L9: =J9*12 -> 126000
A11: =COUNTA(B7:B10) -> 2 | E11: =SUM(E7:E10) -> 28149 | F11: =SUM(F7:F10) -> 1 | G11: =I11/12 -> 16200 | H11: =G11/E11 -> 0.5755088991 | I11: =SUM(I7:I10) -> 194400 | J11: =L11/12 -> 30000 | K11: =J11/E11 -> 1.065757221 | L11: =SUM(L7:L10) -> 360000
A13: Frog Hollow has occupied their building since 2005 and Industrial Automation Inc has occupied their two buildings for over thirty (30) years
A15: Industrial Automation Inc has occupied these two buildings for over three decades | F15: Income
F16: Scheduled Rental Income | I16: =I11 -> 194400 | L16: =L11 -> 360000
F18: Less Physical Vacancy | I18: 0 | J18: The Physical Vacancy is estimated at four (4%) percent for bank financing purposes. | L18: =-(L16*0.04) -> -14400
F19: Scheduled Gross Rental Income | I19: =SUM(I16:I18) -> 194400 | L19: =SUM(L16:L18) -> 345600
F21: Effective Gross Income | I21: =I19 -> 194400 | L21: =L19 -> 345600
F24: Operating Expenses | G24: The new leases are true NNN Leases so no operating expenses are included as deductions.
F27: Total Operating Expenses | I27: 0 | L27: =SUM(L26:L26) -> 0
F29: Net Operating Income | I29: =I21-I27 -> 194400 | L29: =L21-L27 -> 345600 | O29: =L29 -> 345600
F31: Capital Expenditures
F32: Replacement Reserves | G32: =J32 -> 0.25 | I32: =G32*E11 -> 7037.25 | J32: 0.25 | L32: =J32*$E$11 -> 7037.25 | M32: 0.25 | O32: =M32*$E$11 -> 7037.25
F33: Subtotal | G33: =SUM(G32) -> 0.25 | I33: =SUM(I32:I32) -> 7037.25 | J33: =SUM(J32) -> 0.25 | L33: =SUM(L32:L32) -> 7037.25 | M33: =SUM(M32) -> 0.25 | O33: =SUM(O32:O32) -> 7037.25
F35: Total Expense Load | G35: =G27+G33 -> 0.25 | I35: =I27+I33 -> 7037.25 | J35: =J27+J33 -> 0.25 | L35: =L27+L33 -> 7037.25 | M35: =M27+M33 -> 0.25 | O35: =O27+O33 -> 7037.25
F37: Net Income | G37: =I37/$E$11 -> 6.656106789 | I37: =I29-I33 -> 187362.75 | J37: =L37/$E$11 -> 12.02752318 | L37: =L29-L33 -> 338562.75 | M37: =O37/$E$11 -> 12.02752318 | O37: =O29-O33 -> 338562.75
G39: Actual Cap Rate | I39: Value | J39: Proforma Cap Rate | L39: Value
F40: Indicated Value | G40: =I29/I40 -> 0.02837956204 | I40: 6850000 | J40: =L29/L40 -> 0.05045255474 | L40: =I40 -> 6850000 | O40: 0.065
J41: 0.0525 | L41: =L29/J41 -> 6582857.143
J42: 0.055 | L42: =L29/J42 -> 6283636.364 | O42: 0.065
A44: Prepared by: Westlake Associates
A46: 1200 Westlake Ave N, Suite 310, Seattle, WA 98109
A47: Phone: 206-505-9400

Sheet Sheet1
